[Event "*** Titled Tuesday 3|2 Blitz"]
[Site "Chess.com"]
[Date "2015.12.01"]
[Round "9"]
[White "Fandorine"]
[Black "Anton_Demchenko"]
[Result "0-1"]
[WhiteElo "2581"]
[BlackElo "2673"]
[TimeControl "180+2"]
[EndTime "12:58:59 PST"]
[Termination "Anton_Demchenko won by checkmate"]

1. e4 {[%clk 0:03:01.9]} 1... e5 {[%clk 0:03:00.9]} 2. Nf3 {[%clk 0:03:00.7]}
2... Nc6 {[%clk 0:03:01.9]} 3. d4 {[%clk 0:03:02]} 3... exd4 {[%clk 0:03:02.7]}
4. Nxd4 {[%clk 0:03:03.2]} 4... Nf6 {[%clk 0:03:03.9]} 5. Nxc6 {[%clk
0:03:03.8]} 5... bxc6 {[%clk 0:03:05.8]} 6. Qe2 {[%clk 0:03:05.3]} 6... d6
{[%clk 0:03:06]} 7. g3 {[%clk 0:03:05.6]} 7... Be7 {[%clk 0:02:55.2]} 8. Bg2
{[%clk 0:03:06.9]} 8... O-O {[%clk 0:02:56.8]} 9. O-O {[%clk 0:03:07.6]} 9...
Nd7 {[%clk 0:02:53.4]} 10. Rd1 {[%clk 0:02:56.4]} 10... Re8 {[%clk 0:02:52.2]}
11. Nd2 {[%clk 0:02:52.2]} 11... Bf6 {[%clk 0:02:49.9]} 12. Nb3 {[%clk
0:02:49.7]} 12... a5 {[%clk 0:02:19.2]} 13. a4 {[%clk 0:02:49.7]} 13... Qe7
{[%clk 0:02:08.5]} 14. Bd2 {[%clk 0:02:37.2]} 14... Bxb2 {[%clk 0:01:13.2]} 15.
Rab1 {[%clk 0:02:37.7]} 15... Bf6 {[%clk 0:01:14.1]} 16. Nxa5 {[%clk 0:02:38.4]}
16... Ne5 {[%clk 0:01:15.4]} 17. h3 {[%clk 0:02:32.7]} 17... Bd7 {[%clk
0:01:15.7]} 18. Be1 {[%clk 0:02:04.7]} 18... Ng6 {[%clk 0:01:08.5]} 19. f4
{[%clk 0:01:27.8]} 19... c5 {[%clk 0:01:04.3]} 20. e5 {[%clk 0:01:09.2]} 20...
dxe5 {[%clk 0:01:06.2]} 21. Bxa8 {[%clk 0:01:06.6]} 21... Rxa8 {[%clk 0:01:07]}
22. f5 {[%clk 0:01:02.9]} 22... Nf8 {[%clk 0:00:58.1]} 23. Qe4 {[%clk 0:01:04]}
23... Qe8 {[%clk 0:00:49.4]} 24. Ra1 {[%clk 0:00:41.7]} 24... h5 {[%clk
0:00:42.8]} 25. Nb3 {[%clk 0:00:20.9]} 25... Bc6 {[%clk 0:00:38.6]} 26. Qe3
{[%clk 0:00:22.2]} 26... Nh7 {[%clk 0:00:30.5]} 27. h4 {[%clk 0:00:19.5]} 27...
Qc8 {[%clk 0:00:25.4]} 28. Qxc5 {[%clk 0:00:19.5]} 28... Bf3 {[%clk 0:00:25.8]}
29. a5 {[%clk 0:00:12.1]} 29... Qxf5 {[%clk 0:00:24.4]} 30. Qe3 {[%clk
0:00:12.1]} 30... g5 {[%clk 0:00:14.5]} 31. Rd3 {[%clk 0:00:09.8]} 31... e4
{[%clk 0:00:15]} 32. Nd4 {[%clk 0:00:10.9]} 32... Bxd4 {[%clk 0:00:08.6]} 33.
Rxd4 {[%clk 0:00:09.5]} 33... gxh4 {[%clk 0:00:10.2]} 34. Qf2 {[%clk 0:00:05.5]}
34... Ng5 {[%clk 0:00:11.1]} 35. Kf1 {[%clk 0:00:06.4]} 35... Qh3+ {[%clk
0:00:11.3]} 36. Kg1 {[%clk 0:00:08]} 36... Qh1# {[%clk 0:00:12.4]} 0-1

[Event "*** Titled Tuesday 3|2 Blitz"]
[Site "Chess.com"]
[Date "2015.12.01"]
[Round "9"]
[White "MinhGTrAn"]
[Black "motivated_bishop"]
[Result "1-0"]
[WhiteElo "2594"]
[BlackElo "2269"]
[TimeControl "180+2"]
[EndTime "12:59:19 PST"]
[Termination "MinhGTrAn won on time"]

1. Nf3 {[%clk 0:02:40.9]} 1... g6 {[%clk 0:02:35.3]} 2. h4 {[%clk 0:02:41]} 2...
Bg7 {[%clk 0:02:36.1]} 3. h5 {[%clk 0:02:42.3]} 3... gxh5 {[%clk 0:02:33.7]} 4.
d4 {[%clk 0:02:41.2]} 4... Nf6 {[%clk 0:02:34.6]} 5. Nc3 {[%clk 0:02:42.4]} 5...
d5 {[%clk 0:02:35]} 6. Bg5 {[%clk 0:02:43.7]} 6... O-O {[%clk 0:02:34.2]} 7. Qd2
{[%clk 0:02:39]} 7... Ne4 {[%clk 0:02:32.3]} 8. Qf4 {[%clk 0:02:38]} 8... Bg4
{[%clk 0:02:09.7]} 9. Nxe4 {[%clk 0:02:34.1]} 9... dxe4 {[%clk 0:02:10.1]} 10.
Qxe4 {[%clk 0:02:36]} 10... Bxf3 {[%clk 0:02:09.3]} 11. exf3 {[%clk 0:02:29.1]}
11... Qxd4 {[%clk 0:02:09.1]} 12. Qxd4 {[%clk 0:02:26.7]} 12... Bxd4 {[%clk
0:02:10.1]} 13. c3 {[%clk 0:02:28.2]} 13... Bg7 {[%clk 0:01:59.1]} 14. Rxh5
{[%clk 0:02:26.6]} 14... Nc6 {[%clk 0:01:39.7]} 15. O-O-O {[%clk 0:02:24.6]}
15... Rad8 {[%clk 0:01:31.7]} 16. Bd3 {[%clk 0:02:21.5]} 16... h6 {[%clk
0:01:01.1]} 17. Bxh6 {[%clk 0:02:18.6]} 17... Ne5 {[%clk 0:01:02]} 18. Be4
{[%clk 0:01:52.9]} 18... Bxh6+ {[%clk 0:00:54]} 19. Rxh6 {[%clk 0:01:52.4]}
19... Rxd1+ {[%clk 0:00:53.7]} 20. Kxd1 {[%clk 0:01:54.3]} 20... c6 {[%clk
0:00:34.6]} 21. Kc2 {[%clk 0:01:40.8]} 21... Kg7 {[%clk 0:00:34.8]} 22. Rh7+
{[%clk 0:01:32.3]} 22... Kf6 {[%clk 0:00:35.5]} 23. Rh1 {[%clk 0:01:19.5]} 23...
Rg8 {[%clk 0:00:27.5]} 24. g3 {[%clk 0:01:17.8]} 24... e6 {[%clk 0:00:27]} 25.
a4 {[%clk 0:01:12.5]} 25... Ke7 {[%clk 0:00:22.2]} 26. f4 {[%clk 0:00:53.1]}
26... Ng4 {[%clk 0:00:23]} 27. Rf1 {[%clk 0:00:53.8]} 27... Rh8 {[%clk
0:00:24.2]} 28. Kd2 {[%clk 0:00:53.4]} 28... Rh2 {[%clk 0:00:24.7]} 29. Ke2
{[%clk 0:00:55]} 29... f5 {[%clk 0:00:25.7]} 30. Bf3 {[%clk 0:00:55.8]} 30...
Nf6 {[%clk 0:00:26.5]} 31. a5 {[%clk 0:00:48.6]} 31... a6 {[%clk 0:00:25.7]} 32.
Ra1 {[%clk 0:00:50]} 32... Kd6 {[%clk 0:00:21.5]} 33. Rd1+ {[%clk 0:00:28.6]}
33... Kc7 {[%clk 0:00:19.8]} 34. Ke3 {[%clk 0:00:20.8]} 34... Nd5+ {[%clk
0:00:16.6]} 35. Bxd5 {[%clk 0:00:21.8]} 35... cxd5 {[%clk 0:00:12.9]} 36. Re1
{[%clk 0:00:23.1]} 36... Kd6 {[%clk 0:00:14]} 37. Ra1 {[%clk 0:00:22.4]} 37...
Kc6 {[%clk 0:00:12]} 38. Ra4 {[%clk 0:00:23.1]} 38... Rh7 {[%clk 0:00:09.8]} 39.
Rb4 {[%clk 0:00:24.2]} 39... Re7 {[%clk 0:00:09.5]} 40. Kd4 {[%clk 0:00:22.7]}
40... Kc7 {[%clk 0:00:03.9]} 41. Ke5 {[%clk 0:00:23]} 41... Re8 {[%clk
0:00:02.4]} 42. Rb6 {[%clk 0:00:23.5]} 1-0

[Event "*** Titled Tuesday 3|2 Blitz"]
[Site "Chess.com"]
[Date "2015.12.01"]
[Round "9"]
[White "spectralsoul"]
[Black "KNVB"]
[Result "1-0"]
[WhiteElo "2509"]
[BlackElo "2358"]
[TimeControl "180+2"]
[EndTime "12:59:27 PST"]
[Termination "spectralsoul won by resignation"]

1. g3 {[%clk 0:03:01.9]} 1... d5 {[%clk 0:02:57.5]} 2. Bg2 {[%clk 0:03:03]} 2...
c6 {[%clk 0:02:58.1]} 3. c4 {[%clk 0:03:02.9]} 3... Nf6 {[%clk 0:02:47.9]} 4.
Nf3 {[%clk 0:02:59.3]} 4... Bg4 {[%clk 0:02:46.2]} 5. cxd5 {[%clk 0:02:58.3]}
5... Bxf3 {[%clk 0:02:43.9]} 6. Bxf3 {[%clk 0:02:58.9]} 6... cxd5 {[%clk
0:02:45.4]} 7. Qb3 {[%clk 0:02:57.9]} 7... Qd7 {[%clk 0:02:46.3]} 8. O-O {[%clk
0:02:57.8]} 8... Nc6 {[%clk 0:02:46.8]} 9. e3 {[%clk 0:02:58.9]} 9... e6 {[%clk
0:02:44.2]} 10. d4 {[%clk 0:02:59.4]} 10... Be7 {[%clk 0:02:41.5]} 11. Nc3
{[%clk 0:03:00.6]} 11... O-O {[%clk 0:02:42.6]} 12. Bd2 {[%clk 0:02:53.6]} 12...
Na5 {[%clk 0:02:27]} 13. Qc2 {[%clk 0:02:47.7]} 13... Rfc8 {[%clk 0:02:24]} 14.
b3 {[%clk 0:02:44]} 14... Ba3 {[%clk 0:02:02]} 15. Qd3 {[%clk 0:02:41.9]} 15...
Nc6 {[%clk 0:01:57.7]} 16. Nb5 {[%clk 0:02:23.4]} 16... Be7 {[%clk 0:01:55.2]}
17. a3 {[%clk 0:02:11.7]} 17... a6 {[%clk 0:01:48.7]} 18. Nc3 {[%clk 0:02:12.8]}
18... b5 {[%clk 0:01:35.9]} 19. Rfc1 {[%clk 0:02:13.2]} 19... g6 {[%clk
0:01:17.2]} 20. Bg2 {[%clk 0:01:55.9]} 20... Rab8 {[%clk 0:01:11.6]} 21. a4
{[%clk 0:01:54.2]} 21... Nb4 {[%clk 0:01:03.4]} 22. Qb1 {[%clk 0:01:52.6]} 22...
bxa4 {[%clk 0:00:58.5]} 23. Nxa4 {[%clk 0:01:49.6]} 23... Rxc1+ {[%clk
0:00:54.4]} 24. Qxc1 {[%clk 0:01:41.6]} 24... Rc8 {[%clk 0:00:31.3]} 25. Qd1
{[%clk 0:01:35]} 25... Qb7 {[%clk 0:00:29.9]} 26. Rc1 {[%clk 0:01:21.1]} 26...
Rxc1 {[%clk 0:00:16.6]} 27. Qxc1 {[%clk 0:01:16.4]} 27... Ne4 {[%clk 0:00:17.6]}
28. Nc5 {[%clk 0:01:10]} 28... Nxc5 {[%clk 0:00:13.1]} 29. dxc5 {[%clk
0:01:11.2]} 29... Nc6 {[%clk 0:00:11.6]} 30. b4 {[%clk 0:01:04.5]} 30... Nxb4
{[%clk 0:00:08]} 31. Bxb4 {[%clk 0:01:03.1]} 31... Qxb4 {[%clk 0:00:09.9]} 32.
c6 {[%clk 0:01:05]} 32... Qb8 {[%clk 0:00:08.8]} 33. c7 {[%clk 0:01:05.3]} 33...
Qc8 {[%clk 0:00:09.7]} 34. Qc6 {[%clk 0:01:07]} 34... Kg7 {[%clk 0:00:06.5]} 35.
Bf1 {[%clk 0:01:06.9]} 35... Bd8 {[%clk 0:00:05]} 36. cxd8=Q {[%clk 0:01:06.6]}
36... Qxc6 {[%clk 0:00:05.7]} 37. Qa5 {[%clk 0:01:05.8]} 37... Qd6 {[%clk
0:00:05.6]} 38. Qa1+ {[%clk 0:00:59.7]} 38... Kg8 {[%clk 0:00:05.7]} 39. Bxa6
{[%clk 0:01:00.4]} 39... h5 {[%clk 0:00:06.9]} 40. Be2 {[%clk 0:00:59.6]} 40...
Qb4 {[%clk 0:00:07.6]} 41. Qf6 {[%clk 0:00:59.5]} 41... Qe1+ {[%clk 0:00:07.6]}
42. Bf1 {[%clk 0:01:00.9]} 42... Qd2 {[%clk 0:00:08.8]} 43. Bh3 {[%clk
0:00:57.7]} 43... Qc1+ {[%clk 0:00:05.9]} 44. Kg2 {[%clk 0:00:58.8]} 44... Qc6
{[%clk 0:00:07.4]} 45. Qd4 {[%clk 0:00:57.1]} 45... Qd6 {[%clk 0:00:07.7]} 46.
e4 {[%clk 0:00:54.7]} 46... g5 {[%clk 0:00:05]} 47. Kg1 {[%clk 0:00:53.6]} 47...
g4 {[%clk 0:00:03.8]} 48. Bg2 {[%clk 0:00:54.6]} 48... Qe7 {[%clk 0:00:04.7]}
49. exd5 {[%clk 0:00:55.6]} 49... exd5 {[%clk 0:00:06.6]} 50. Bxd5 {[%clk
0:00:56.4]} 50... Qe1+ {[%clk 0:00:07.5]} 51. Kg2 {[%clk 0:00:58]} 51... Qe7
{[%clk 0:00:09.1]} 52. Qf4 {[%clk 0:00:56.9]} 52... Kg7 {[%clk 0:00:10]} 53. Qf5
{[%clk 0:00:58]} 1-0

[Event "*** Titled Tuesday 3|2 Blitz"]
[Site "Chess.com"]
[Date "2015.12.01"]
[Round "9"]
[White "Iball95"]
[Black "Svetlin_Mladenov"]
[Result "0-1"]
[WhiteElo "2417"]
[BlackElo "2338"]
[TimeControl "180+2"]
[EndTime "12:59:45 PST"]
[Termination "Svetlin_Mladenov won by checkmate"]

1. e4 {[%clk 0:02:49.3]} 1... d6 {[%clk 0:02:59.8]} 2. d4 {[%clk 0:02:49.3]}
2... Nf6 {[%clk 0:03:01.2]} 3. Nc3 {[%clk 0:02:50.2]} 3... e5 {[%clk 0:03:02.6]}
4. Nf3 {[%clk 0:02:50.5]} 4... Nbd7 {[%clk 0:03:03.7]} 5. Bc4 {[%clk 0:02:49.4]}
5... Be7 {[%clk 0:03:05.2]} 6. O-O {[%clk 0:02:50.8]} 6... O-O {[%clk
0:03:06.5]} 7. Re1 {[%clk 0:02:52.3]} 7... a6 {[%clk 0:03:07.2]} 8. a4 {[%clk
0:02:53.7]} 8... b6 {[%clk 0:03:08.8]} 9. Nd5 {[%clk 0:02:43.3]} 9... Bb7 {[%clk
0:03:09.3]} 10. dxe5 {[%clk 0:02:40.4]} 10... dxe5 {[%clk 0:03:04.3]} 11. Nxf6+
{[%clk 0:02:32.1]} 11... Bxf6 {[%clk 0:03:02.5]} 12. b3 {[%clk 0:02:27.2]} 12...
Re8 {[%clk 0:02:52.7]} 13. Ba3 {[%clk 0:02:26.8]} 13... Nf8 {[%clk 0:02:53]} 14.
Qe2 {[%clk 0:02:01]} 14... Ne6 {[%clk 0:02:51.5]} 15. Rad1 {[%clk 0:01:59.6]}
15... Nf4 {[%clk 0:02:49.8]} 16. Qf1 {[%clk 0:01:54.8]} 16... Qc8 {[%clk
0:02:48.7]} 17. Bc1 {[%clk 0:01:36.1]} 17... Ne6 {[%clk 0:02:39.4]} 18. Bd5
{[%clk 0:01:30]} 18... c6 {[%clk 0:02:40.5]} 19. Bc4 {[%clk 0:01:28.6]} 19... b5
{[%clk 0:02:41.6]} 20. Bxe6 {[%clk 0:01:21.9]} 20... Qxe6 {[%clk 0:02:42.7]} 21.
Ba3 {[%clk 0:01:14.9]} 21... Be7 {[%clk 0:02:21.6]} 22. Bxe7 {[%clk 0:01:07.7]}
22... Qxe7 {[%clk 0:02:20.3]} 23. axb5 {[%clk 0:01:08.2]} 23... cxb5 {[%clk
0:02:19.5]} 24. c4 {[%clk 0:01:08.2]} 24... Bc6 {[%clk 0:02:19.5]} 25. Qd3
{[%clk 0:01:03.9]} 25... Red8 {[%clk 0:02:17]} 26. Qc3 {[%clk 0:01:03.2]} 26...
f6 {[%clk 0:02:18.3]} 27. cxb5 {[%clk 0:00:58.6]} 27... Bxb5 {[%clk 0:02:19.1]}
28. h3 {[%clk 0:00:57.8]} 28... h6 {[%clk 0:02:20.2]} 29. Nh4 {[%clk 0:00:55.7]}
29... Rac8 {[%clk 0:02:19.8]} 30. Qg3 {[%clk 0:00:55.3]} 30... Bd7 {[%clk
0:01:56.6]} 31. Ng6 {[%clk 0:00:48.5]} 31... Qf7 {[%clk 0:01:55.7]} 32. Rd6
{[%clk 0:00:48.2]} 32... Be8 {[%clk 0:01:47.8]} 33. Red1 {[%clk 0:00:48.7]}
33... Rxd6 {[%clk 0:01:48.4]} 34. Rxd6 {[%clk 0:00:50.6]} 34... Qxg6 {[%clk
0:01:50]} 35. Qd3 {[%clk 0:00:47.1]} 35... Bb5 {[%clk 0:01:50.9]} 36. Qd5+
{[%clk 0:00:47.3]} 36... Qf7 {[%clk 0:01:50.5]} 37. Re6 {[%clk 0:00:44.8]} 37...
Bd7 {[%clk 0:01:36.7]} 38. Rxa6 {[%clk 0:00:46]} 38... Qxd5 {[%clk 0:01:37.1]}
39. exd5 {[%clk 0:00:47.9]} 39... Kf8 {[%clk 0:01:37.9]} 40. b4 {[%clk 0:00:35]}
40... Rb8 {[%clk 0:01:36.5]} 41. Kh2 {[%clk 0:00:28.6]} 41... Rxb4 {[%clk
0:01:36.9]} 42. Ra5 {[%clk 0:00:26.7]} 42... Ke7 {[%clk 0:01:37.7]} 43. Kg3
{[%clk 0:00:26.8]} 43... Kd6 {[%clk 0:01:32.9]} 44. h4 {[%clk 0:00:25]} 44... h5
{[%clk 0:01:33.8]} 45. f3 {[%clk 0:00:24.8]} 45... g5 {[%clk 0:01:35]} 46. hxg5
{[%clk 0:00:23.1]} 46... fxg5 {[%clk 0:01:35.5]} 47. Ra6+ {[%clk 0:00:25]} 47...
Kxd5 {[%clk 0:01:36.4]} 48. Rh6 {[%clk 0:00:26.9]} 48... h4+ {[%clk 0:01:37.5]}
49. Kh2 {[%clk 0:00:26.3]} 49... Rf4 {[%clk 0:01:28.8]} 50. Rg6 {[%clk
0:00:25.2]} 50... g4 {[%clk 0:01:30.1]} 51. fxg4 {[%clk 0:00:23]} 51... Rxg4
{[%clk 0:01:31.1]} 52. Ra6 {[%clk 0:00:24.2]} 52... Bf5 {[%clk 0:01:30.8]} 53.
Ra3 {[%clk 0:00:23.9]} 53... Be4 {[%clk 0:01:30.4]} 54. Ra5+ {[%clk 0:00:19.1]}
54... Ke6 {[%clk 0:01:31.3]} 55. Ra7 {[%clk 0:00:19.4]} 55... Bxg2 {[%clk
0:01:29.8]} 56. Kg1 {[%clk 0:00:20.5]} 56... h3 {[%clk 0:01:29.6]} 57. Kh2
{[%clk 0:00:21.4]} 57... Bd5 {[%clk 0:01:26.8]} 58. Ra6+ {[%clk 0:00:22.2]}
58... Kf5 {[%clk 0:01:27.4]} 59. Ra1 {[%clk 0:00:21.8]} 59... e4 {[%clk
0:01:27]} 60. Rf1+ {[%clk 0:00:23]} 60... Ke5 {[%clk 0:01:28.2]} 61. Rf8 {[%clk
0:00:24.9]} 61... Rg6 {[%clk 0:01:28.6]} 62. Re8+ {[%clk 0:00:26.8]} 62... Re6
{[%clk 0:01:29.4]} 63. Rf8 {[%clk 0:00:28]} 63... Rg6 {[%clk 0:01:30.1]} 64. Rf1
{[%clk 0:00:29.9]} 64... e3 {[%clk 0:01:30.9]} 65. Kxh3 {[%clk 0:00:31.8]} 65...
Bg2+ {[%clk 0:01:31.4]} 66. Kh2 {[%clk 0:00:32]} 66... Bxf1 {[%clk 0:01:32.6]}
67. Kh1 {[%clk 0:00:33.9]} 67... e2 {[%clk 0:01:33.1]} 68. Kh2 {[%clk
0:00:35.8]} 68... e1=Q {[%clk 0:01:33.3]} 69. Kh1 {[%clk 0:00:37.7]} 69... Qh4#
{[%clk 0:01:34.4]} 0-1

[Event "*** Titled Tuesday 3|2 Blitz"]
[Site "Chess.com"]
[Date "2015.12.01"]
[Round "9"]
[White "Colombiano07"]
[Black "ZEN-22"]
[Result "0-1"]
[WhiteElo "2106"]
[BlackElo "2248"]
[TimeControl "180+2"]
[EndTime "13:00:15 PST"]
[Termination "ZEN-22 won on time"]

1. d4 {[%clk 0:03:01.9]} 1... d6 {[%clk 0:02:58.8]} 2. Nf3 {[%clk 0:03:02.1]}
2... f5 {[%clk 0:02:59]} 3. Bf4 {[%clk 0:03:03.2]} 3... Nd7 {[%clk 0:02:56.5]}
4. e3 {[%clk 0:03:04.3]} 4... g6 {[%clk 0:02:56.1]} 5. h3 {[%clk 0:03:05]} 5...
Bg7 {[%clk 0:02:57.2]} 6. Be2 {[%clk 0:03:06]} 6... e5 {[%clk 0:02:58.3]} 7. Bh2
{[%clk 0:03:06.4]} 7... e4 {[%clk 0:02:57.1]} 8. Nfd2 {[%clk 0:03:07]} 8... Ngf6
{[%clk 0:02:58.2]} 9. c4 {[%clk 0:03:07.9]} 9... O-O {[%clk 0:02:57.8]} 10. Nc3
{[%clk 0:03:08.6]} 10... Qe7 {[%clk 0:02:52.3]} 11. O-O {[%clk 0:03:09]} 11...
a6 {[%clk 0:02:52.2]} 12. b4 {[%clk 0:02:56.3]} 12... h5 {[%clk 0:02:41.5]} 13.
a4 {[%clk 0:02:54.6]} 13... c5 {[%clk 0:02:36.4]} 14. bxc5 {[%clk 0:02:54.2]}
14... dxc5 {[%clk 0:02:37.4]} 15. d5 {[%clk 0:02:54.5]} 15... Ne5 {[%clk
0:02:36.7]} 16. a5 {[%clk 0:02:51.4]} 16... h4 {[%clk 0:02:33.6]} 17. Na4 {[%clk
0:02:44.2]} 17... Nfd7 {[%clk 0:02:31]} 18. Rb1 {[%clk 0:02:40.3]} 18... g5
{[%clk 0:02:28.8]} 19. Nb6 {[%clk 0:02:40.1]} 19... Rb8 {[%clk 0:02:26.1]} 20.
f4 {[%clk 0:02:29.4]} 20... exf3 {[%clk 0:02:26.4]} 21. Nxf3 {[%clk 0:02:30.1]}
21... Nxf3+ {[%clk 0:02:26]} 22. Rxf3 {[%clk 0:02:29.5]} 22... Ne5 {[%clk
0:02:25.6]} 23. Rf1 {[%clk 0:02:25.6]} 23... g4 {[%clk 0:02:23.9]} 24. Bf4
{[%clk 0:02:19.9]} 24... Bd7 {[%clk 0:02:10.4]} 25. Nxd7 {[%clk 0:02:14.8]}
25... Nxd7 {[%clk 0:02:08]} 26. hxg4 {[%clk 0:02:14.6]} 26... Be5 {[%clk
0:02:00.8]} 27. gxf5 {[%clk 0:02:09.4]} 27... Bxf4 {[%clk 0:02:01.6]} 28. exf4
{[%clk 0:02:09.3]} 28... Nf6 {[%clk 0:01:56.8]} 29. Bf3 {[%clk 0:02:02.4]} 29...
Qe3+ {[%clk 0:01:55.4]} 30. Kh1 {[%clk 0:02:02.8]} 30... Qxf4 {[%clk 0:01:55.8]}
31. Qd3 {[%clk 0:01:43.5]} 31... Rf7 {[%clk 0:01:50.7]} 32. Rb6 {[%clk
0:01:40.9]} 32... Rd8 {[%clk 0:01:47.1]} 33. Re1 {[%clk 0:01:37.9]} 33... h3
{[%clk 0:01:41.4]} 34. gxh3 {[%clk 0:01:37.4]} 34... Qh4 {[%clk 0:01:41]} 35.
Qf1 {[%clk 0:01:28.2]} 35... Rg7 {[%clk 0:01:33.7]} 36. Ree6 {[%clk 0:01:14.5]}
36... Rf8 {[%clk 0:01:29.2]} 37. d6 {[%clk 0:00:54.9]} 37... Rg3 {[%clk
0:00:53.7]} 38. Bg2 {[%clk 0:00:53.6]} 38... Kg7 {[%clk 0:00:40.4]} 39. Rxb7+
{[%clk 0:00:52.6]} 39... Kh8 {[%clk 0:00:33.2]} 40. d7 {[%clk 0:00:36.5]} 40...
Rgg8 {[%clk 0:00:28.4]} 41. Rbb6 {[%clk 0:00:35.1]} 41... Rg7 {[%clk 0:00:23.4]}
42. Rbd6 {[%clk 0:00:33.1]} 42... Nh5 {[%clk 0:00:23.3]} 43. Rh6+ {[%clk
0:00:32.6]} 43... Rh7 {[%clk 0:00:23.8]} 44. Rxh7+ {[%clk 0:00:32.5]} 44... Kxh7
{[%clk 0:00:24.5]} 45. Kg1 {[%clk 0:00:19.4]} 45... Qg3 {[%clk 0:00:22.6]} 46.
Rd3 {[%clk 0:00:16.9]} 46... Qg5 {[%clk 0:00:22.2]} 47. f6 {[%clk 0:00:15.5]}
47... Rd8 {[%clk 0:00:21.2]} 48. Qf3 {[%clk 0:00:13]} 48... Nxf6 {[%clk
0:00:21.4]} 49. Qg3 {[%clk 0:00:10.5]} 49... Qh6 {[%clk 0:00:19.6]} 50. Qd6
{[%clk 0:00:10.4]} 50... Ng8 {[%clk 0:00:19.9]} 51. Be4+ {[%clk 0:00:09.1]}
51... Kh8 {[%clk 0:00:20.6]} 52. Qe5+ {[%clk 0:00:09.7]} 52... Nf6 {[%clk
0:00:21.1]} 53. Rf3 {[%clk 0:00:09.9]} 53... Rg8+ {[%clk 0:00:22.4]} 54. Kh2
{[%clk 0:00:09.7]} 54... Qd2+ {[%clk 0:00:23.7]} 0-1

[Event "*** Titled Tuesday 3|2 Blitz"]
[Site "Chess.com"]
[Date "2015.12.01"]
[Round "9"]
[White "rikyshi"]
[Black "Grootneus"]
[Result "1-0"]
[WhiteElo "2149"]
[BlackElo "2018"]
[TimeControl "180+2"]
[EndTime "13:00:18 PST"]
[Termination "rikyshi won by resignation"]

1. e4 {[%clk 0:03:01.9]} 1... c5 {[%clk 0:03:00.7]} 2. Nf3 {[%clk 0:03:02.7]}
2... Nc6 {[%clk 0:02:59.3]} 3. d4 {[%clk 0:03:03.7]} 3... cxd4 {[%clk
0:03:01.2]} 4. Nxd4 {[%clk 0:03:04.9]} 4... Nf6 {[%clk 0:03:02.9]} 5. Nc3 {[%clk
0:03:05.2]} 5... e5 {[%clk 0:03:04.5]} 6. Ndb5 {[%clk 0:03:06.1]} 6... d6 {[%clk
0:03:05.6]} 7. a4 {[%clk 0:03:06.7]} 7... a6 {[%clk 0:03:03.4]} 8. Na3 {[%clk
0:03:07.7]} 8... Bg4 {[%clk 0:03:03.9]} 9. f3 {[%clk 0:03:06.5]} 9... Be6 {[%clk
0:03:05]} 10. Bc4 {[%clk 0:03:06.6]} 10... Be7 {[%clk 0:03:04.1]} 11. Be3 {[%clk
0:03:05.9]} 11... O-O {[%clk 0:03:04.8]} 12. O-O {[%clk 0:03:06.5]} 12... Rc8
{[%clk 0:03:04.9]} 13. Bd5 {[%clk 0:03:05.4]} 13... Nb4 {[%clk 0:02:50.1]} 14.
Rf2 {[%clk 0:02:44.5]} 14... Nbxd5 {[%clk 0:02:44.4]} 15. exd5 {[%clk
0:02:42.7]} 15... Rxc3 {[%clk 0:02:05.9]} 16. bxc3 {[%clk 0:02:36.6]} 16... Nxd5
{[%clk 0:02:06.8]} 17. Qd2 {[%clk 0:02:31.7]} 17... Nxe3 {[%clk 0:02:03.3]} 18.
Qxe3 {[%clk 0:02:32.4]} 18... d5 {[%clk 0:02:02]} 19. Kh1 {[%clk 0:02:24.2]}
19... f6 {[%clk 0:02:00.4]} 20. Nb1 {[%clk 0:02:09.4]} 20... Qc7 {[%clk
0:01:58.3]} 21. Rd2 {[%clk 0:02:09.1]} 21... Qc4 {[%clk 0:01:48.6]} 22. Rd1
{[%clk 0:01:59.3]} 22... Bf5 {[%clk 0:01:19.8]} 23. Qd2 {[%clk 0:01:58]} 23...
Rd8 {[%clk 0:01:17]} 24. Re1 {[%clk 0:01:22.3]} 24... d4 {[%clk 0:01:01.3]} 25.
cxd4 {[%clk 0:01:20.7]} 25... Rxd4 {[%clk 0:01:01.7]} 26. Qc3 {[%clk 0:01:20.9]}
26... Qxc3 {[%clk 0:00:56.7]} 27. Nxc3 {[%clk 0:01:21.6]} 27... Bb4 {[%clk
0:00:55.7]} 28. Re3 {[%clk 0:01:22]} 28... Bxc2 {[%clk 0:00:56.7]} 29. Ne4
{[%clk 0:01:15.9]} 29... Bxa4 {[%clk 0:00:48.1]} 30. h3 {[%clk 0:01:07.2]} 30...
Bc6 {[%clk 0:00:48.8]} 31. Ng3 {[%clk 0:01:00.2]} 31... a5 {[%clk 0:00:48.8]}
32. Nf5 {[%clk 0:00:59.4]} 32... Rd7 {[%clk 0:00:42.8]} 33. Rb3 {[%clk
0:00:54.3]} 33... Bd5 {[%clk 0:00:39.5]} 34. Rd3 {[%clk 0:00:55]} 34... Be6
{[%clk 0:00:40.7]} 35. Rxd7 {[%clk 0:00:54.9]} 35... Bxd7 {[%clk 0:00:42.6]} 36.
Ne3 {[%clk 0:00:56.2]} 36... Kf7 {[%clk 0:00:39.2]} 37. Nc4 {[%clk 0:00:56.9]}
37... Bb5 {[%clk 0:00:31.8]} 38. Nxa5 {[%clk 0:00:55.5]} 38... Ke6 {[%clk
0:00:32.3]} 39. Nxb7 {[%clk 0:00:54.9]} 39... Kd5 {[%clk 0:00:28.8]} 40. Rb1
{[%clk 0:00:53.5]} 40... Kc4 {[%clk 0:00:29.3]} 41. Rc1+ {[%clk 0:00:42.7]}
41... Bc3 {[%clk 0:00:30.4]} 42. Nd6+ {[%clk 0:00:43.7]} 42... Kb4 {[%clk
0:00:28.3]} 43. Nxb5 {[%clk 0:00:44.7]} 43... Bd2 {[%clk 0:00:29.9]} 44. Rd1
{[%clk 0:00:45.6]} 44... Bf4 {[%clk 0:00:29.7]} 45. Nd6 {[%clk 0:00:46.5]} 45...
Kc5 {[%clk 0:00:31]} 46. Ne4+ {[%clk 0:00:45.1]} 46... Kc6 {[%clk 0:00:32.9]}
47. g3 {[%clk 0:00:43.8]} 47... Be3 {[%clk 0:00:33.6]} 48. g4 {[%clk 0:00:44.7]}
48... Bd4 {[%clk 0:00:34.7]} 49. Rb1 {[%clk 0:00:44.2]} 49... Kd5 {[%clk
0:00:35.6]} 50. Rb7 {[%clk 0:00:44.8]} 50... h5 {[%clk 0:00:36.7]} 51. Rxg7
{[%clk 0:00:45]} 51... hxg4 {[%clk 0:00:38]} 52. hxg4 {[%clk 0:00:44.2]} 52...
Ke6 {[%clk 0:00:39.4]} 53. Rg6 {[%clk 0:00:44.2]} 53... Kf7 {[%clk 0:00:40.4]}
54. Rxf6+ {[%clk 0:00:45.3]} 54... Kg7 {[%clk 0:00:42.3]} 55. Rd6 {[%clk
0:00:46.4]} 55... Bb2 {[%clk 0:00:43.3]} 56. Kg2 {[%clk 0:00:45.4]} 56... Ba1
{[%clk 0:00:44.5]} 57. Kf1 {[%clk 0:00:46.1]} 57... Bb2 {[%clk 0:00:46.4]} 58.
Ke2 {[%clk 0:00:47.1]} 58... Ba1 {[%clk 0:00:48.3]} 59. Kd3 {[%clk 0:00:48.5]}
59... Bb2 {[%clk 0:00:49.8]} 60. Kc4 {[%clk 0:00:49.8]} 60... Ba1 {[%clk
0:00:51.4]} 61. Kd5 {[%clk 0:00:50.5]} 61... Kf7 {[%clk 0:00:52.8]} 62. Re6
{[%clk 0:00:51.2]} 62... Bd4 {[%clk 0:00:54.3]} 63. Rxe5 {[%clk 0:00:52.5]}
63... Bxe5 {[%clk 0:00:56.2]} 64. Kxe5 {[%clk 0:00:54.2]} 64... Kg7 {[%clk
0:00:58.1]} 65. Kf5 {[%clk 0:00:55.8]} 65... Kf7 {[%clk 0:00:58.9]} 66. Nf2
{[%clk 0:00:56.7]} 66... Kg7 {[%clk 0:01:00.8]} 67. f4 {[%clk 0:00:58]} 67...
Kf7 {[%clk 0:01:02.7]} 68. g5 {[%clk 0:00:58.4]} 68... Kg7 {[%clk 0:01:04.6]}
69. g6 {[%clk 0:00:59.7]} 69... Kg8 {[%clk 0:01:05.6]} 70. Kf6 {[%clk
0:01:00.3]} 70... Kf8 {[%clk 0:01:07.2]} 71. g7+ {[%clk 0:01:01.4]} 71... Kg8
{[%clk 0:01:08.8]} 72. Nd1 {[%clk 0:01:02.1]} 72... Kh7 {[%clk 0:01:09.9]} 73.
Kf7 {[%clk 0:01:03.5]} 1-0